bitfinex-derivatives/quotes_SOLF0:USTF0_20250529
["timestamp","ask_amount","ask_price","bid_price","bid_amount"]
[1748546615133,5.9993,166.66,166.64,0.04046505]
[1748546615639,0.04581047,166.67,166.64,0.04046505]
[1748546615640,6.04491047,166.67,166.64,0.04046505]
[1748546616430,5.9993,166.66,166.64,0.04046505]
[1748546617039,6.04471047,166.67,166.64,0.04046505]
[1748546617339,0.04581047,166.67,166.64,0.04046505]
[1748546618026,6.04481047,166.67,166.64,6.04026505]
[1748546619934,0.04581047,166.67,166.65,5.9994]
[1748546620136,0.04581047,166.67,166.64,0.04046505]
[1748546620533,0.04581047,166.67,166.66,5.9992]
[1748546621436,5.9978,166.7,166.68,5.9984]
[1748546621641,5.9978,166.7,166.65,2.0277]
[1748546621825,5.9978,166.7,166.67,5.9987]
[1748546622430,0.04131739,166.7,166.68,5.9984]
[1748546622630,0.04131739,166.7,166.65,2.0277]
[1748546623035,0.04131739,166.7,166.69,5.9981]
[1748546625849,0.04131739,166.7,166.69,40.7781]
[1748546628148,34.94,166.76,166.72,5.9969]
[1748546628341,46.8424,166.8,166.69,34.78]
[1748546628542,5.996,166.75,166.69,34.78]
[1748546629234,0.03831619,166.74,166.72,5.9967]
[1748546629935,0.03831619,166.74,166.73,5.9967]
[1748546630941,0.03831619,166.74,166.72,5.9969]
[1748546631643,0.03831619,166.74,166.73,5.9967]
[1748546632145,34.78,166.8,166.7,0.03956267]
[1748546632346,34.78,166.84,166.7,0.03956267]
[1748546632546,5.9936,166.82,166.73,16.77161769]
[1748546632750,34.78,166.84,166.74,40.7031]
[1748546632942,1.9488,166.85,166.74,40.7031]
[1748546633141,36.7407,166.89,166.78,0.04468296]
[1748546633340,0.03551891,166.85,166.82,0.03869843]
[1748546634648,0.03551891,166.85,166.83,5.9931]
[1748546634845,0.03551891,166.85,166.82,0.03869843]
[1748546635341,0.03551891,166.85,166.84,5.9927]
[1748546636246,0.03551891,166.85,166.82,0.03869843]
[1748546636843,5.9931,166.83,166.82,0.03869843]
[1748546637044,0.03551891,166.85,166.82,0.03869843]
[1748546637447,5.9931,166.83,166.82,0.03869843]
[1748546638255,5.9928,166.84,166.82,0.03869843]
[1748546638455,0.03551891,166.85,166.83,5.993]
[1748546638657,0.03551891,166.85,166.82,0.03869843]
[1748546639753,0.03551891,166.85,166.82,6.03189843]
[1748546640258,0.03551891,166.85,166.83,5.993]
[1748546640457,0.03551891,166.85,166.82,0.03869843]
[1748546640751,0.03551891,166.85,166.84,5.9927]
[1748546642055,0.03551891,166.85,166.83,5.9928]
[1748546642260,0.03551891,166.85,166.82,0.03869843]
[1748546642655,0.03551891,166.85,166.84,5.9927]
[1748546643060,0.03551891,166.85,166.82,0.03869843]
[1748546644165,5.9931,166.83,166.82,0.03869843]
[1748546645260,0.03551891,166.85,166.75,553.0]
[1748546645459,2.0654,166.85,166.75,558.9957]
[1748546645660,2.0654,166.85,166.75,34.76]
[1748546645861,5.9948,166.79,166.75,34.76]
[1748546646063,2.0654,166.85,166.76,5.9952]
[1748546646262,0.04423871,166.82,166.79,0.03930784]
[1748546646967,5.9941,166.8,166.79,0.03930784]
[1748546649972,5.9941,166.8,166.69,5.9841]
[1748546649973,34.80423871,166.82,166.71,34.76]
[1748546650164,34.76,166.82,166.71,34.76]
[1748546650563,2.0976,166.81,166.71,34.76]
[1748546650966,0.03922255,166.78,166.74,0.03893186]
[1748546651576,5.9959,166.75,166.74,0.03893186]
[1748546652865,0.03922255,166.78,166.74,0.03893186]
[1748546653575,5.9959,166.75,166.74,0.03893186]
[1748546654874,5.9967,166.73,166.72,3.01244]
[1748546656177,5.9967,166.73,166.72,0.39344]
[1748546656382,0.0459066,166.74,166.71,0.042481]
[1748546656383,5.997,166.72,166.71,0.042481]
[1748546658183,6.0424066,166.74,166.71,0.042481]
[1748546658775,0.0459066,166.74,166.71,0.042481]
[1748546659180,0.0459066,166.74,166.73,5.9967]
[1748546659491,34.64,166.81,166.71,34.682481]
[1748546659784,34.64,166.81,166.72,5.889]
[1748546660085,34.64,166.81,166.72,2.0048]
[1748546660382,5.9958,166.76,166.75,0.04365293]
[1748546665181,0.04405944,166.78,166.75,0.04365293]
[1748546665887,6.03915944,166.78,166.75,6.03935293]
[1748546666189,0.04405944,166.78,166.75,6.03935293]
[1748546666489,0.04405944,166.78,166.75,0.04365293]
[1748546667986,5.9956,166.76,166.75,0.04365293]
[1748546669789,0.04405944,166.78,166.75,0.04365293]
[1748546670790,5.9956,166.76,166.75,0.04365293]
[1748546671290,0.04405944,166.78,166.75,0.04365293]
[1748546671792,0.04405944,166.78,166.77,5.9952]
[1748546671997,0.04405944,166.78,166.75,0.04365293]
[1748546673089,5.9956,166.76,166.75,0.04365293]
[1748546674295,0.04405944,166.78,166.75,0.04365293]
[1748546674686,5.9956,166.76,166.75,0.04365293]
[1748546676102,5.9973,166.72,166.68,34.64]
[1748546676285,5.9973,166.72,166.68,40.6382]
[1748546676693,5.9973,166.72,166.68,34.64]
[1748546677090,6.03683187,166.72,166.68,34.6808489]
[1748546677588,6.03683187,166.72,166.69,5.998]
[1748546678093,0.03953187,166.72,166.68,34.6808489]
[1748546678284,0.03953187,166.72,166.71,5.9974]
[1748546681494,0.03953187,166.72,166.68,34.6808489]
[1748546681996,5.9981,166.69,166.68,34.6808489]
[1748546682199,5.9981,166.69,166.68,0.0408489]
[1748546683591,0.03953187,166.72,166.68,0.0408489]
[1748546684195,5.9976,166.71,166.68,0.0408489]
[1748546684601,5.9976,166.71,166.68,6.0390489]
[1748546685397,5.9978,166.7,166.68,0.0408489]
[1748546685790,5.9981,166.69,166.68,0.0408489]
[1748546686298,0.03953187,166.72,166.68,0.0408489]
[1748546687901,5.9977,166.71,166.68,6.0392489]
[1748546688299,6.03663187,166.72,166.69,5.998]
[1748546688599,0.03953187,166.72,166.68,0.0408489]
[1748546689306,5.9976,166.71,166.68,6.0390489]
[1748546691505,0.03953187,166.72,166.68,0.0408489]
[1748546691506,5.9978,166.7,166.68,0.0408489]
[1748546691812,0.03953187,166.72,166.68,0.0408489]
[1748546691813,44.81482364,166.72,166.68,0.0408489]
[1748546691997,5.9981,166.69,166.68,0.0408489]
[1748546692193,44.81482364,166.72,166.62,4.059]
[1748546692394,10.25529177,166.69,166.62,4.059]
[1748546692603,10.25529177,166.69,166.62,2.078]
[1748546692800,10.25529177,166.69,166.6,36.5076]
[1748546693108,0.04417104,166.66,166.63,0.0395393]
[1748546693908,5.9999,166.64,166.63,0.0395393]
[1748546694303,0.04417104,166.66,166.63,0.0395393]
[1748546694496,5.9998,166.65,166.63,0.0395393]
[1748546696199,5.9999,166.64,166.63,0.0395393]
[1748546697208,5.9997,166.65,166.63,0.0395393]
[1748546697409,0.04417104,166.66,166.63,0.0395393]
[1748546697706,6.04347104,166.66,166.63,0.0395393]
[1748546698299,6.04347104,166.66,166.63,6.0395393]
[1748546699602,5.9995,166.65,166.63,6.0395393]
[1748546700209,5.9995,166.65,166.63,0.0395393]
[1748546700402,5.9999,166.64,166.63,0.0395393]
[1748546700703,0.04417104,166.66,166.63,0.0395393]
[1748546702197,5.9995,166.65,166.63,0.0395393]
[1748546702906,5.9999,166.64,166.63,0.0395393]
[1748546705609,34.52,166.64,166.52,34.52]
[1748546705807,10.25529177,166.62,166.52,36.5099]
[1748546706006,34.52,166.64,166.52,36.5099]
[1748546706709,0.04473935,166.6,166.56,0.04019483]
[1748546707303,0.04473935,166.6,166.56,44.8154866]
[1748546707504,34.52,166.68,166.57,3.9335]
[1748546707703,5.9996,166.65,166.62,6.0005]
[1748546707900,34.52,166.68,166.6,34.52]
[1748546708104,34.52,166.68,166.61,1.9899]
[1748546708613,0.04578991,166.66,166.63,0.03785025]
[1748546709409,0.04578991,166.66,166.64,5.9997]
[1748546709700,0.04578991,166.66,166.63,0.03785025]
[1748546709903,0.04578991,166.66,166.65,5.9995]
[1748546710505,40.5175,166.71,166.68,5.9983]
[1748546710803,34.52,166.75,166.64,38.4542]
[1748546711208,5.9977,166.71,166.67,5.9987]
[1748546711615,0.04357056,166.71,166.67,0.04115541]
[1748546712809,6.04127056,166.71,166.68,5.9982]
[1748546713011,0.04357056,166.71,166.67,0.04115541]
[1748546713207,6.04107056,166.71,166.68,5.9981]
[1748546713418,0.04357056,166.71,166.67,0.04115541]
[1748546714813,5.9978,166.7,166.67,6.03975541]
[1748546715812,6.04107056,166.71,166.68,5.9984]
[1748546716015,0.04357056,166.71,166.68,5.9984]
[1748546716405,6.04127056,166.71,166.68,5.9984]
[1748546716924,5.9985,166.68,166.67,0.04115541]
[1748546717109,0.04357056,166.71,166.67,0.04115541]
[1748546718116,5.9978,166.7,166.67,0.04115541]
[1748546718306,0.04357056,166.71,166.67,0.04115541]
[1748546719213,5.9978,166.7,166.67,0.04115541]
[1748546719716,5.9978,166.7,166.67,6.03995541]
[1748546720217,5.9981,166.69,166.67,6.03995541]
[1748546721114,5.9978,166.7,166.68,5.9984]
[1748546721314,0.04357056,166.71,166.67,0.04115541]
[1748546721813,6.04117056,166.71,166.68,5.9983]
[1748546722013,6.04117056,166.71,166.67,0.04115541]
[1748546722215,6.04117056,166.71,166.68,5.9984]
[1748546723413,6.04117056,166.71,166.67,0.04115541]
[1748546723626,0.04357056,166.71,166.67,34.42115541]
[1748546724118,0.04357056,166.71,166.7,5.9977]
[1748546725221,0.04357056,166.71,166.67,34.42115541]
[1748546725818,0.04357056,166.71,166.7,5.9977]
[1748546729126,34.38,166.78,166.67,34.42115541]
[1748546729435,34.38,166.78,166.74,5.9961]
[1748546729631,34.38,166.78,166.65,18.67421519]
[1748546729632,34.38,166.78,166.71,34.36]
[1748546729922,564.8522,166.81,166.71,34.36]
[1748546730123,0.04504087,166.76,166.73,0.04424521]
[1748546730540,0.04504087,166.76,166.74,5.9963]
[1748546731231,0.04504087,166.76,166.73,0.04424521]
[1748546732529,6.04074087,166.76,166.73,6.04074521]
[1748546733431,0.04504087,166.76,166.73,0.04424521]
[1748546734035,5.9963,166.74,166.73,0.04424521]
[1748546739327,5.9961,166.75,166.73,0.04424521]
[1748546739528,0.04504087,166.76,166.73,0.04424521]
[1748546740040,5.9961,166.75,166.73,0.04424521]
[1748546741231,5.9961,166.75,166.73,6.04084521]
[1748546741531,5.9961,166.75,166.73,0.04424521]
[1748546741731,0.04504087,166.76,166.73,0.04424521]
[1748546742334,0.04504087,166.76,166.73,2.09984521]
[1748546742540,0.04504087,166.76,166.75,5.9959]
[1748546744635,5.9946,166.79,166.76,5.9953]
[1748546745235,5.9944,166.8,166.77,5.9952]
[1748546745627,6.03750923,166.8,166.77,6.03486389]
[1748546745934,5.9946,166.79,166.77,6.03486389]
[1748546746235,0.04310923,166.8,166.77,6.03486389]
[1748546746439,6.03750923,166.8,166.77,6.03486389]
[1748546746641,0.04310923,166.8,166.78,5.9948]
[1748546747335,0.04310923,166.8,166.77,0.03966389]
[1748546747936,5.9949,166.78,166.77,0.03966389]
[1748546748934,5.9947,166.79,166.77,0.03966389]
[1748546749341,0.04310923,166.8,166.77,0.03966389]
[1748546749737,0.04310923,166.8,166.77,6.03466389]
[1748546750139,6.03740923,166.8,166.77,6.03466389]
[1748546750339,6.03740923,166.8,166.77,0.03966389]
[1748546750735,6.03740923,166.8,166.77,6.03476389]
[1748546750936,5.9945,166.79,166.77,6.03476389]
[1748546751134,5.9945,166.79,166.77,0.03966389]
[1748546751843,5.9949,166.78,166.77,0.03966389]
[1748546753438,5.9946,166.79,166.77,0.03966389]
[1748546753638,0.04310923,166.8,166.77,0.03966389]
[1748546753843,0.04310923,166.8,166.78,5.9948]
[1748546754140,0.04310923,166.8,166.77,0.03966389]
[1748546754847,10.0,166.88,166.77,10.30516301]
[1748546755047,34.2,166.91,166.78,1.9222]
[1748546755241,34.2,166.91,166.83,5.9928]
[1748546755441,34.2,166.91,166.82,34.2]
[1748546755845,5.9918,166.87,166.85,0.04209394]
[1748546756145,34.2,166.91,166.85,0.04209394]
[1748546757749,5.992,166.86,166.85,0.04209394]
[1748546760553,5.9918,166.87,166.85,0.04209394]
[1748546760754,20.26549912,166.92,166.85,0.04209394]
[1748546761146,10.0,166.92,166.85,0.04209394]
[1748546761347,10.0,166.92,166.86,5.9918]
[1748546761545,5.9908,166.9,166.86,5.9918]
[1748546761755,10.0,166.92,166.86,5.9918]
[1748546761958,10.0,166.92,166.85,6.03429394]
[1748546763755,5.9915,166.88,166.85,6.03429394]
[1748546764260,2.0144,166.94,166.85,0.04209394]
[1748546764859,5.9919,166.87,166.85,0.04209394]
[1748546765056,2.0144,166.94,166.85,0.04209394]
[1748546765961,5.992,166.86,166.85,0.04209394]
[1748546768154,5.9917,166.87,166.85,0.04209394]
[1748546768356,34.18,166.91,166.85,0.04209394]
[1748546768755,5.9914,166.88,166.85,0.04209394]
[1748546768959,34.18,166.91,166.85,0.04209394]
[1748546769357,5.9911,166.89,166.85,6.03419394]
[1748546769863,5.9913,166.88,166.85,6.03419394]
[1748546770159,34.18,166.91,166.85,0.04209394]
[1748546770366,5.9917,166.87,166.85,0.04209394]
[1748546770760,34.18,166.91,166.85,0.04209394]
[1748546770957,5.992,166.86,166.85,0.04209394]
[1748546775466,5.992,166.86,166.85,9.394e-05]
[1748546775761,10.26549912,166.86,166.77,34.18]
[1748546775960,10.26549912,166.86,166.74,36.1866]
[1748546776168,5.9948,166.79,166.75,5.9956]
[1748546776466,14.24619912,166.86,166.75,5.9956]
[1748546776760,0.04233748,166.82,166.79,0.03861541]
[1748546776967,5.9941,166.8,166.79,0.03861541]
[1748546779060,10.3078366,166.82,166.7,34.02]
[1748546779273,10.26549912,166.78,166.7,34.02]
[1748546779457,5.9988,166.67,166.65,2.0503]
[1748546779663,10.26549912,166.72,166.65,2.0503]
[1748546779858,10.26549912,166.72,166.62,34.04]
[1748546780059,0.04545035,166.69,166.65,0.04365091]
[1748546782166,0.04545035,166.69,166.65,6.04285091]
[1748546782364,0.04545035,166.69,166.65,0.04365091]
[1748546783467,5.9968,166.73,166.66,34.04]
[1748546784060,5.9963,166.74,166.66,34.04]
[1748546784272,34.04,166.77,166.68,10.26549912]
[1748546784463,5.9977,166.7,166.68,0.03962223]
[1748546784964,0.03790986,166.72,166.68,0.03962223]
[1748546785959,0.03790986,166.72,166.7,5.9977]
[1748546786758,0.03790986,166.72,166.71,5.9974]
[1748546787168,0.03790986,166.72,166.69,34.04]
[1748546787363,0.03790986,166.72,166.71,5.9974]
[1748546787664,34.04,166.77,166.69,34.04]
[1748546787865,34.04,166.77,166.69,40.0379]
[1748546788367,34.04,166.77,166.69,34.04]
[1748546788767,5.9966,166.74,166.7,5.9975]
[1748546788967,34.04,166.77,166.7,0.04414341]
[1748546789169,5.9956,166.76,166.72,5.9967]
[1748546789370,34.04,166.77,166.72,5.9967]
[1748546789566,10.0,166.83,166.7,2.03494341]
[1748546789761,34.04,166.82,166.75,0.04074359]
[1748546789965,5.9956,166.76,166.75,0.04074359]
[1748546793871,5.9974,166.71,166.7,1.9908]
[1748546794064,5.9974,166.71,166.69,34.04]
[1748546795873,5.9977,166.7,166.69,34.04]
[1748546796075,0.04601762,166.72,166.69,34.04]
[1748546796476,34.04,166.8,166.69,34.04]
[1748546797179,5.9953,166.77,166.69,34.04]
[1748546797374,5.9953,166.77,166.71,0.04062565]
[1748546798080,5.9956,166.76,166.73,5.9964]
[1748546798280,5.9956,166.76,166.73,6.03596782]
[1748546798578,34.04,166.8,166.73,0.03956782]
[1748546798779,5.9949,166.78,166.75,5.9957]
[1748546799079,34.04,166.8,166.73,34.07956782]
[1748546799279,5.9952,166.78,166.74,5.9962]
[1748546799479,34.04,166.8,166.74,5.9962]
[1748546799679,34.04,166.8,166.73,34.07956782]
[1748546799982,5.9952,166.78,166.73,34.07956782]
[1748546800175,5.9952,166.78,166.74,0.04561701]
[1748546800376,5.9952,166.78,166.75,5.9956]
[1748546800576,5.9946,166.79,166.74,0.04561701]
[1748546800880,5.9946,166.79,166.74,3.98241701]
[1748546801178,5.9942,166.8,166.77,5.9952]
[1748546801381,5.9942,166.8,166.77,6.03553135]
[1748546801576,37.8666,166.84,166.77,0.04033135]
[1748546801777,5.9947,166.79,166.77,0.04033135]
[1748546802577,10.0,166.87,166.79,5.9944]
[1748546802884,46.0224,166.89,166.81,0.04173472]
[1748546803276,34.04,166.89,166.81,0.04173472]
[1748546803681,36.1008,166.89,166.81,0.04173472]
[1748546804884,5.9928,166.84,166.81,6.03523472]
[1748546805281,5.9931,166.83,166.81,0.04173472]
[1748546805686,36.1008,166.89,166.81,0.04173472]
[1748546805889,36.1008,166.89,166.81,6.03533472]
[1748546806284,36.1008,166.89,166.81,0.04173472]
[1748546806985,5.9925,166.85,166.81,6.03523472]
[1748546807187,36.1008,166.89,166.81,6.03523472]
[1748546807586,36.1008,166.89,166.81,0.04173472]
[1748546807881,12.0718,166.88,166.81,0.04173472]
[1748546808280,5.9934,166.82,166.81,0.04173472]
[1748546809584,33.9,166.85,166.81,0.04173472]
[1748546810182,5.9934,166.82,166.81,0.04173472]
[1748546811186,5.9932,166.83,166.81,0.04173472]
[1748546811390,12.0718,166.88,166.81,0.04173472]
[1748546812892,5.9934,166.82,166.81,0.04173472]
[1748546815195,5.9931,166.83,166.81,0.04173472]
[1748546815495,12.0718,166.88,166.81,0.04173472]
[1748546815793,5.9933,166.83,166.81,0.04173472]
[1748546815992,12.0718,166.88,166.81,0.04173472]
[1748546816494,5.9934,166.82,166.81,0.04173472]
[1748546817188,12.0718,166.88,166.81,0.04173472]
[1748546817189,5.9932,166.83,166.81,0.04173472]
[1748546817394,12.0718,166.88,166.81,0.04173472]
[1748546818396,5.9933,166.83,166.81,0.04173472]
[1748546821197,5.9934,166.82,166.81,0.04173472]
[1748546822397,5.9934,166.82,166.81,3.472e-05]
[1748546822599,44.15316353,166.84,166.73,33.9]
[1748546822790,10.25316353,166.81,166.7,3.9585]
[1748546823103,5.9966,166.74,166.7,9.9559]
[1748546823301,33.9,166.8,166.7,3.9585]
[1748546823496,5.9958,166.76,166.73,0.04519309]
[1748546823998,0.03963721,166.77,166.73,0.04519309]
[1748546824193,5.9962,166.75,166.73,0.04519309]
[1748546824900,0.03963721,166.77,166.73,0.04519309]
[1748546825899,0.03963721,166.77,166.73,33.94519309]
[1748546826501,0.03963721,166.77,166.73,35.95899309]
[1748546827396,6.03503721,166.77,166.74,5.9961]
[1748546827591,0.03963721,166.77,166.73,35.95899309]
[1748546827999,0.03963721,166.77,166.75,5.9957]
[1748546828401,0.03963721,166.77,166.73,35.95899309]
[1748546828697,0.03963721,166.77,166.76,5.9956]
[1748546829005,0.03963721,166.77,166.73,35.95899309]
[1748546830106,0.03963721,166.77,166.76,5.9956]
[1748546830299,0.03963721,166.77,166.73,35.95899309]
[1748546830709,6.03483721,166.77,166.74,5.9962]
[1748546831004,0.03963721,166.77,166.73,35.95899309]
[1748546831599,0.03963721,166.77,166.76,5.9956]
[1748546832205,0.03963721,166.77,166.73,35.95899309]
[1748546834103,0.03963721,166.77,166.75,5.9959]
[1748546834703,0.03963721,166.77,166.76,5.9956]
[1748546835703,2.0761,166.86,166.73,35.95899309]
[1748546835900,5.9936,166.82,166.73,35.9138]
[1748546836295,5.9936,166.82,166.79,5.9943]
[1748546836600,5.9936,166.82,166.79,0.04461305]
[1748546837200,5.9936,166.82,166.79,6.03901305]
[1748546837399,5.9936,166.82,166.79,0.04461305]
[1748546837705,5.9936,166.82,166.79,6.03901305]
[1748546838395,5.9932,166.83,166.8,5.994]
[1748546838596,5.9932,166.83,166.79,0.04461305]
[1748546838795,35.9761,166.86,166.79,0.04461305]
[1748546840105,35.9761,166.86,166.81,5.9937]
[1748546840106,5.9931,166.83,166.81,5.9937]
[1748546840504,35.9761,166.86,166.81,5.9937]
[1748546840708,5.993,166.84,166.81,5.9937]
[1748546840908,35.9761,166.86,166.8,5.994]
[1748546841811,5.9934,166.83,166.8,5.994]
[1748546842113,35.9761,166.86,166.8,5.994]
[1748546842313,5.9932,166.83,166.8,5.994]
[1748546842707,35.9761,166.86,166.79,6.03901305]
[1748546843117,5.9936,166.82,166.79,6.03901305]
[1748546843321,35.9761,166.86,166.79,0.04461305]
[1748546843806,10.25316353,166.85,166.79,0.04461305]
[1748546846113,5.994,166.81,166.79,0.04461305]
[1748546846313,35.9761,166.86,166.79,0.04461305]
[1748546846914,5.9927,166.84,166.79,0.04461305]
[1748546847211,33.9,166.86,166.79,0.04461305]
[1748546848018,5.9933,166.83,166.8,5.9939]
[1748546849021,5.9933,166.83,166.81,5.9937]
[1748546849416,5.9928,166.84,166.81,5.9937]
[1748546849618,5.9928,166.84,166.82,5.9934]
[1748546850220,33.9,166.86,166.79,0.04461305]
[1748546850221,5.9931,166.83,166.81,5.9936]
[1748546850420,33.9,166.86,166.79,0.04461305]
[1748546850621,33.9,166.86,166.81,5.9935]
[1748546850821,5.993,166.84,166.81,5.9935]
[1748546851522,5.9931,166.83,166.81,5.9935]
[1748546851723,5.9931,166.83,166.8,5.9941]
[1748546852323,5.9931,166.83,166.81,5.9937]
[1748546852528,5.9931,166.83,166.79,0.04461305]
[1748546852719,5.9936,166.82,166.79,0.04461305]
[1748546852919,33.9,166.86,166.8,5.9939]
[1748546853325,33.9,166.86,166.79,0.04461305]
[1748546853828,5.9927,166.84,166.79,0.04461305]
[1748546854122,33.76,166.89,166.79,0.04461305]
[1748546854327,33.76,166.89,166.82,0.04415142]
[1748546855326,22.57966353,166.92,166.82,0.04415142]
[1748546855327,33.76,166.92,166.82,0.04415142]
[1748546855632,44.01316353,166.92,166.82,1.97825142]
[1748546855835,5.9926,166.85,166.82,7.97145142]
[1748546856131,5.9926,166.85,166.82,1.97825142]
[1748546856432,5.9921,166.86,166.83,5.9928]
[1748546856625,5.9921,166.86,166.83,0.04074732]
[1748546857328,33.76,166.92,166.83,0.04074732]
[1748546857730,5.9927,166.84,166.83,0.04074732]
[1748546857932,33.76,166.92,166.83,0.04074732]
[1748546858527,10.25316353,166.9,166.83,0.04074732]
[1748546858739,5.9927,166.84,166.83,0.04074732]
[1748546862529,6.0,166.84,166.73,33.74]
[1748546862736,10.25316353,166.82,166.73,33.74]
[1748546862930,5.9947,166.79,166.73,33.74]
[1748546863126,33.74,166.83,166.73,33.74]
[1748546863335,0.04326159,166.8,166.76,0.04248492]
[1748546863532,0.04326159,166.8,166.77,5.9951]
[1748546864132,6.03746159,166.8,166.77,5.9951]
[1748546867437,5.9945,166.79,166.77,5.9951]
[1748546867637,5.9945,166.79,166.76,6.03788492]
[1748546868236,6.03756159,166.8,166.77,5.9952]
[1748546868538,0.04326159,166.8,166.76,0.04248492]
[1748546869639,5.9952,166.77,166.76,0.04248492]
[1748546874235,5.995,166.78,166.76,0.04248492]
[1748546874833,5.9952,166.77,166.76,0.04248492]
[1748546878733,33.62,166.79,166.76,0.04248492]
[1748546879441,5.9952,166.77,166.76,0.04248492]
[1748546882046,33.62,166.79,166.76,0.04248492]
[1748546882544,5.9949,166.78,166.76,0.04248492]
[1748546883540,5.9949,166.78,166.76,6.03798492]
[1748546883854,5.9952,166.77,166.76,0.04248492]
[1748546884051,33.62,166.79,166.76,0.04248492]
[1748546884947,5.9952,166.77,166.76,0.04248492]
[1748546886151,5.9968,166.73,166.69,33.62]
[1748546886345,33.62,166.79,166.69,33.62]
[1748546886552,43.62,166.79,166.69,33.62]
[1748546886750,33.62,166.79,166.69,33.62]
[1748546886944,5.9954,166.77,166.69,33.62]
[1748546887249,0.03992745,166.75,166.74,5.9961]
[1748546887850,0.03992745,166.75,166.73,5.9965]
[1748546889450,0.03992745,166.75,166.74,5.9963]
[1748546890350,0.03992745,166.75,166.73,5.9965]
[1748546892751,0.03992745,166.75,166.74,5.9963]
[1748546894355,0.03992745,166.75,166.73,5.9965]
[1748546894855,6.03592745,166.75,166.73,5.9965]
[1748546896553,5.9964,166.74,166.72,5.9969]
[1748546896753,5.9964,166.74,166.71,0.04185841]
[1748546896754,0.03992745,166.75,166.71,0.04185841]
[1748546897653,0.03992745,166.75,166.71,6.03905841]
[1748546898154,5.997,166.72,166.71,0.04185841]
[1748546902059,5.997,166.72,166.65,39.4993]
[1748546902060,5.9987,166.68,166.65,39.4993]
[1748546902257,33.5,166.72,166.65,33.5]
[1748546902655,33.5,166.72,166.66,5.999]
[1748546902959,0.0383859,166.71,166.67,0.04495803]
[1748546903157,5.9984,166.69,166.67,0.04495803]
[1748546903353,0.0383859,166.71,166.67,0.04495803]
[1748546903559,0.0383859,166.71,166.69,5.9979]
[1748546903760,0.0383859,166.71,166.67,0.04495803]
[1748546904164,6.0359859,166.71,166.68,5.9981]
[1748546904763,5.9978,166.7,166.67,6.04365803]
[1748546904962,0.0383859,166.71,166.67,0.04495803]
[1748546905363,5.9978,166.7,166.68,5.9984]
[1748546905566,0.0383859,166.71,166.68,5.9984]
[1748546906063,6.0360859,166.71,166.68,5.9984]
[1748546906462,0.0383859,166.71,166.68,5.9984]
[1748546906662,5.9978,166.7,166.67,0.04495803]
[1748546907062,5.9978,166.7,166.67,6.04355803]
[1748546907666,5.9981,166.69,166.67,6.04355803]
[1748546907865,5.9981,166.69,166.67,0.04495803]
[1748546908164,0.0383859,166.71,166.67,0.04495803]
[1748546910270,5.9985,166.68,166.67,0.04495803]
[1748546910867,0.0383859,166.71,166.67,0.04495803]
[1748546911474,5.9985,166.68,166.67,0.04495803]
[1748546912876,6.0001,166.64,166.62,1.972]
[1748546913279,5.9997,166.65,166.62,1.972]
[1748546913778,0.04370056,166.65,166.62,2.01554354]
[1748546914168,0.04370056,166.65,166.63,6.0001]
[1748546914369,0.04370056,166.65,166.62,2.01554354]
[1748546914875,0.04370056,166.65,166.64,5.9999]
[1748546915079,10.0,166.7,166.62,2.01554354]
[1748546915272,33.5,166.72,166.65,5.9993]
[1748546916070,0.04016904,166.7,166.67,0.03843497]
[1748546916274,5.9987,166.68,166.67,0.03843497]
[1748546921185,5.9982,166.69,166.67,0.03843497]
[1748546921483,0.04016904,166.7,166.68,5.9984]
[1748546921690,0.04016904,166.7,166.67,0.03843497]
[1748546922086,0.04016904,166.7,166.69,5.9981]
[1748546922386,5.9969,166.73,166.68,35.4627]
[1748546922578,10.0,166.79,166.68,45.71586353]
[1748546922785,33.5,166.8,166.68,45.71586353]
[1748546922984,33.5,166.8,166.71,10.25316353]
[1748546923278,0.0418081,166.77,166.74,0.04405836]
[1748546923786,0.0418081,166.77,166.76,5.9953]
[1748546925480,0.0418081,166.77,166.75,5.9959]
[1748546925987,0.0418081,166.77,166.74,0.04405836]
[1748546926376,0.0418081,166.77,166.76,5.9956]